Cogmind - Beta 13 @@@ ROGUE MODE // 2024.06.29 @ 14:09:02 Player: buwwet Result: Destroyed by S-27 Virus with Autogun Performance ------------- Evolutions (6) 3000 Regions Visited (15) 3000 Robots Destroyed (91) 455 Value Destroyed (2977) 2977 Prototype IDs (0) 0 Alien Tech Used (0) 0 Bonus (500) 500 TOTAL SCORE: 9932 Bonus ------- Entered DSFs 500 Cogmind --------- Core Integrity 0/1150 Matter 107/300 Energy 100/100 System Corruption 0% Temperature Cool (0) Movement Core (50) Location -4/Upper Caves Parts ------- > --- POWER (2) -------- (None) > --- PROPULSION (5) --- (None) > --- UTILITY (8) ------ Advanced Visual Processing Unit Advanced Signal Interpreter Advanced Terrain Scan Processor Advanced Target Analyzer System Guard > --- WEAPON (4) ------- (None) > --- INVENTORY (5) ---- Layered Heavy Armor Plating Authchip [Device] Railgun Peak State ------------ > --- POWER ------------ Fission Core Neutrino Core > --- PROPULSION ------- Gyrokinetic Inverter Gyrokinetic Inverter Gyrokinetic Inverter Gyrokinetic Inverter Improved Antigrav System > --- UTILITY ---------- Advanced Visual Processing Unit Advanced Signal Interpreter Advanced Terrain Scan Processor Transmission Jammer Core Shielding Improved Core Shielding System Guard System Guard > --- WEAPON ----------- Heavy Laser Mass Driver > --- INVENTORY -------- Authchip [Device] System Guard Thermic Laser [Rating: 85] Favorites ----------- Power Light Ion Engine Engine Light Ion Engine Power Core Light Nuclear Core Propulsion Aluminum Leg Treads Light Treads Leg Aluminum Leg Hover Unit Gyrokinetic Inverter Flight Unit Makeshift Flight Unit Utility Improved Targeting Computer Device Improved Heat Sink Storage Small Storage Unit Processor Improved Targeting Computer Hackware Hacking Suite Protection Improved Core Shielding Weapon High-powered Shock Rifle Energy Gun High-powered Shock Rifle Energy Cannon Light EM Pulse Cannon Ballistic Gun Heavy Assault Rifle Ballistic Cannon Mass Driver Launcher Grenade Launcher Build | -11 -10 -10 -9 -9 -8 -7 -7 -6 -6 -6 -5 -5 -5 -4 -4 ------- Run | Yrd Mat Min Mat Min Mat Fac DSF Fac Low Low Fac Was Fac Fac Upp Slots Evolved 12 | . . . 2 . 2 2 . 2 . . 2 . . 2 . Power 1 | . . . . . 1 . . . . . . . . . . Propulsion 3 | . . . . . . 1 . 1 . . 1 . . . . Utility 6 | . . . 2 . 1 . . 1 . . . . . 2 . Weapon 2 | . . . . . . 1 . . . . 1 . . . . Parts Attached 120 | 7 12 2 15 . 27 2 2 16 2 . 17 3 2 8 5 Power 16 | 1 3 . 1 . 4 . . 1 . . 4 . . 2 . Engine 9 | 1 3 . 1 . 3 . . . . . 1 . . . . Core 7 | . . . . . 1 . . 1 . . 3 . . 2 . Reactor . | . . . . . . . . . . . . . . . . Propulsion 39 | 3 4 1 5 . 9 1 . 6 . . 7 1 . 1 1 Treads 8 | 2 . . . . 4 1 . 1 . . . . . . . Leg 18 | 1 4 1 5 . 5 . . 1 . . 1 . . . . Wheel . | . . . . . . . . . . . . . . . . Hover 12 | . . . . . . . . 4 . . 6 1 . 1 . Flight 1 | . . . . . . . . . . . . . . . 1 Utility 34 | 1 2 . 4 . 6 . 2 5 2 . 2 2 . 4 4 Device 12 | . . . 1 . 3 . 1 2 1 . 1 . . 1 2 Storage 2 | 1 . . . . . . . 1 . . . . . . . Processor 11 | . 2 . 1 . . . . 2 . . . 1 . 3 2 Hackware 1 | . . . . . 1 . . . . . . . . . . Protection 8 | . . . 2 . 2 . 1 . 1 . 1 1 . . . Artifact . | . . . . . . . . . . . . . . . . Weapon 31 | 2 3 1 5 . 8 1 . 4 . . 4 . 2 1 . Energy Gun 18 | 2 3 1 2 . 3 . . 3 . . 2 . 1 1 . Energy Cannon 3 | . . . 1 . 1 1 . . . . . . . . . Ballistic Gun 6 | . . . 1 . 3 . . 1 . . 1 . . . . Ballistic Cannon 3 | . . . 1 . . . . . . . 1 . 1 . . Launcher 1 | . . . . . 1 . . . . . . . . . . Special Weapon . | . . . . . . . . . . . . . . . . Impact Weapon . | . . . . . . . . . . . . . . . . Slashing Weapon . | . . . . . . . . . . . . . . . . Piercing Weapon . | . . . . . . . . . . . . . . . . Special Melee Weapon . | . . . . . . . . . . . . . . . . Unidentified Prototypes . | . . . . . . . . . . . . . . . . Corrupted Parts 1 | . . . . . . . . . . . 1 . . . . System Corruption 1 | . . . . . . . . . . . 1 . . . . Parts Lost 58 | . 4 . 3 . 11 . 12 1 . . 8 . . 12 7 Power 8 | . . . . . 2 . 2 . . . 2 . . 2 . Propulsion 13 | . 1 . . . 2 . 3 1 . . . . . 2 4 Utility 18 | . . . 1 . 4 . 4 . . . 1 . . 5 3 Weapon 19 | . 3 . 2 . 3 . 3 . . . 5 . . 3 . Highest Loss Streak 12 | . 3 . 2 . 6 . 12 1 . . 6 . . 9 4 To Critical Strikes 1 | . . . . . 1 . . . . . . . . . . Average Slot Usage (%) 85 | . 92 99 95 88 93 100 73 79 87 86 89 64 74 74 43 Engine 7 | . 13 14 11 11 13 7 4 . . . 3 . . . . Core 1 | . . . . . 1 7 4 2 6 6 5 5 5 4 . Treads 3 | . 11 . . . 8 23 18 3 . . . . . . . Leg 11 | . 15 28 22 22 9 . . 4 6 6 4 . . . . Hover 7 | . . . . . . . . 14 20 20 23 23 23 23 12 Device 8 | . . . 11 11 21 15 10 8 6 6 7 5 5 5 4 Storage 6 | . 14 14 11 11 6 . . 5 . . . . . . . Processor 14 | . 13 14 12 11 9 7 7 18 20 20 13 17 17 22 25 Protection 3 | . . . 5 . 2 15 9 . 5 6 10 11 11 8 . Energy Gun 11 | . 23 27 5 11 12 . . 15 13 13 6 . 4 4 . Energy Cannon 1 | . . . 6 . . 15 10 . . . . . . . . Ballistic Gun 3 | . . . 7 11 3 7 4 2 6 6 6 . . . . Naked Turns . | . . . . . . . . . . . . . . . . Heaviest Build 42 | 14 15 11 19 19 35 42 42 23 23 23 38 18 31 32 8 Greatest Support 60 | 40 20 20 20 20 40 60 60 23 23 23 55 33 33 44 11 Greatest Overweight (x) 3 | . 3 . . . 1 . 2 1 . . 1 . . . . Average Overweight (x) . | . . . . . . . . . . . . . . . . Largest Inventory Capacity 8 | 8 8 8 8 8 8 5 5 5 5 5 5 5 5 5 5 Average Capacity 6 | 6 8 8 8 8 7 5 5 5 5 5 5 5 5 5 5 Most Carried 8 | 5 8 8 8 8 8 4 5 5 5 5 5 5 3 5 4 Average Carried 5 | 3 6 7 7 8 6 3 4 4 4 5 4 3 1 3 2 Final Capacity 8 | 8 8 8 8 8 5 5 5 5 5 5 5 5 5 5 5 Final Carried 8 | 3 8 8 8 8 5 3 5 5 5 5 3 3 2 2 4 Class Distribution -------------------- 52% | Mutant 28% | Scavenger-Mutant 15% | Gunner Dominant Class ---------------- Mutant | -10/Materials Mutant | -10/Mines Mutant | -9/Materials Scavenger-Mutant | -9/Mines Scavenger-Mutant | -8/Materials Scavenger-Mutant | -7/Factory Scavenger-Tank | -7/DSF Gunner | -6/Factory Gunner | -6/Lower Caves Gunner | -6/Lower Caves Gunner | -5/Factory Mutant | -5/Waste Mutant | -5/Factory Mutant | -4/Factory Mutant | -4/Upper Caves Resources | -11 -10 -10 -9 -9 -8 -7 -7 -6 -6 -6 -5 -5 -5 -4 -4 ----------- Run | Yrd Mat Min Mat Min Mat Fac DSF Fac Low Low Fac Was Fac Fac Upp Matter Collected 1651 | 116 254 20 339 . 401 . 53 207 20 . 194 . . 7 40 Remotely . | . . . . . . . . . . . . . . . . Salvage Created 3387 | . 420 262 907 . 817 . 180 422 . . 351 . . 28 . Parts 218 | . 27 14 68 . 43 . 12 36 . . 17 . . 1 . Haulers Intercepted . | . . . . . . . . . . . . . . . . Recyclers Shooed 2 | . . . . . . . . 2 . . . . . . . Parts Field Recycled . | . . . . . . . . . . . . . . . . Retrieved Matter . | . . . . . . . . . . . . . . . . Parts Self-Destructed 3 | . . . . . . . . . . . . . . . 3 Prevented . | . . . . . . . . . . . . . . . . Kills | -11 -10 -10 -9 -9 -8 -7 -7 -6 -6 -6 -5 -5 -5 -4 -4 ------- Run | Yrd Mat Min Mat Min Mat Fac DSF Fac Low Low Fac Was Fac Fac Upp Combat Hostiles Destroyed 68 | . 10 5 20 . 15 . 3 8 . . 7 . . . . Guns 48 | . 9 5 11 . 10 . . 8 . . 5 . . . . Cannons 11 | . . . 6 . . . 3 . . . 2 . . . . AOE 8 | . 1 . 3 . 4 . . . . . . . . . . Classes Destroyed 13 | . 4 . 3 . 4 . 1 1 . . . . . . . Worker 8 | . 2 . 2 . 3 . . 1 . . . . . . . Builder 3 | . . . 1 . . . . 2 . . . . . . . Tunneler 1 | . . . . . 1 . . . . . . . . . . Recycler 1 | . . . . . 1 . . . . . . . . . . Operator 1 | . . . 1 . . . . . . . . . . . . Watcher 9 | . 1 . 4 . 2 . . 1 . . . . . 1 . Swarmer 15 | . 3 . 4 . . . . 5 . . 3 . . . . Grunt 31 | . 7 5 7 . 8 . . 2 . . 2 . . . . Brawler 2 | . . . . . 1 . . . . . 1 . . . . Sentry 14 | . . . 9 . 3 . 1 . . . 1 . . . . Specialist 2 | . . . . . . . 2 . . . . . . . . Hunter 3 | . . . . . 3 . . . . . . . . . . Programmer 1 | . . . . . . . . 1 . . . . . . . Best Kill Streak 7 | . 3 2 7 . 4 . 1 6 . . 6 . . 1 . Combat Bots Only 6 | . 3 2 4 . 3 . 1 3 . . 6 . . . . Max Kills in Single Turn 5 | . 1 1 5 . 3 . 1 3 . . 2 . . 1 . Gunslinging 1 | . . . . . 1 . . . . . . . . . . Exploded 3 | . 1 . 3 . 2 . . . . . . . . . . Melee . | . . . . . . . . . . . . . . . . Uniques/NPCs Destroyed . | . . . . . . . . . . . . . . . . Combat | -11 -10 -10 -9 -9 -8 -7 -7 -6 -6 -6 -5 -5 -5 -4 -4 -------- Run | Yrd Mat Min Mat Min Mat Fac DSF Fac Low Low Fac Was Fac Fac Upp Hostile Shots Fired 885 | . 60 15 91 6 145 . 238 39 . . 76 . . 106 109 Missed 326 | . 9 8 27 1 40 . 91 12 . . 26 . . 56 56 Damage Taken 8813 | . 621 99 829 88 1317 . 2249 449 . . 911 . . 1257 993 Core 2583 | . 121 32 111 31 310 . 663 54 . . 109 . . 377 775 Absorbed by Shields 325 | . . . . . 304 . . . . . . . . . 21 Redirected to Shielding 137 | . . . . . . . . . . . 39 . . 98 . Core Remaining (%) 61 | 100 . 38 . 64 43 . 5 . . 93 . . 89 . . Volleys Fired 228 | . 41 13 59 . 64 . 11 14 . . 23 . . 3 . Largest 3 | . 2 2 2 . 2 . 3 3 . . 3 . . 2 . Hottest 188 | . 115 80 96 . 105 . 188 180 . . 150 . . 126 . Shots Fired 433 | . 68 22 115 . 111 . 23 40 . . 47 . 1 6 . Gun 345 | . 68 22 70 . 101 . 7 40 . . 34 . . 3 . Cannon 78 | . . . 45 . . . 16 . . . 13 . 1 3 . Launcher 10 | . . . . . 10 . . . . . . . . . . Special . | . . . . . . . . . . . . . . . . Kinetic 150 | . . . 62 . 26 . 7 13 . . 38 . 1 3 . Thermal 180 | . 48 9 23 . 75 . 16 . . . 6 . . 3 . Explosive 10 | . . . . . 10 . . . . . . . . . . Electromagnetic 93 | . 20 13 30 . . . . 27 . . 3 . . . . Robot Hit Streak 23 | . 8 12 23 . 14 . 11 5 . . 7 . . 2 . Robot Miss Streak 5 | . 2 2 3 . 5 . 2 5 . . 3 . . 3 . Penetration Max 1 | . . . . . . . 1 . . . 1 . . . . Secondary Targets 3 | . 1 . . . 2 . . . . . . . . . . Max Gunslinging Chain 1 | . 1 . . . 1 . . . . . . . . . . Shots Hit Robots 300 | . 51 19 85 . 79 . 16 20 . . 27 . . 3 . Core Hits 162 | . 20 11 39 . 48 . 5 23 . . 14 . . 2 . Critical Kills 1 | . . . . . 1 . . . . . . . . . . Critical Parts Destroyed 3 | . . . . . 1 . . . . . 2 . . . . Critical Strikes 15 | . 5 . 3 . 3 . . 1 . . 3 . . . . Burn 7 | . 4 . 2 . 1 . . . . . . . . . . Destroy 4 | . . . . . 2 . . . . . 2 . . . . Blast 1 | . . . . . . . . . . . 1 . . . . Corrupt 3 | . 1 . 1 . . . . 1 . . . . . . . Melee Attacks . | . . . . . . . . . . . . . . . . Impact . | . . . . . . . . . . . . . . . . Slashing . | . . . . . . . . . . . . . . . . Piercing . | . . . . . . . . . . . . . . . . Sneak Attacks . | . . . . . . . . . . . . . . . . Combat Hostiles . | . . . . . . . . . . . . . . . . Follow-up Attacks . | . . . . . . . . . . . . . . . . Damage Inflicted 7079 | . 904 245 2070 . 1872 . 461 703 . . 735 . . 89 . Guns 3867 | . 739 245 739 . 992 . 161 438 . . 533 . . 20 . Cannons 1242 | . . . 671 . . . 300 . . . 202 . . 69 . Explosions 1963 | . 165 . 653 . 880 . . 265 . . . . . . . Melee . | . . . . . . . . . . . . . . . . Ramming 7 | . . . 7 . . . . . . . . . . . . Kinetic 2019 | . . . 697 . 314 . 161 160 . . 618 . . 69 . Thermal 2703 | . 654 77 848 . 678 . 300 46 . . 80 . . 20 . Explosive 880 | . . . . . 880 . . . . . . . . . . Electromagnetic 1470 | . 250 168 518 . . . . 497 . . 37 . . . . Impact . | . . . . . . . . . . . . . . . . Slashing . | . . . . . . . . . . . . . . . . Piercing . | . . . . . . . . . . . . . . . . Highest Corruption 5 | . . . . . 5 . 5 . . . 1 1 1 . . Average Corruption 3 | . . . . . 4 . 5 . . . 1 1 1 . . Corruption Purged . | . . . . . . . . . . . . . . . . Corruption Blocked . | . . . . . . . . . . . . . . . . Effects 16 | . . . . . 13 . . . . . 1 . 2 . . Message Errors 3 | . . . . . 2 . . . . . . . 1 . . Matter Fused 3 | . . . . . 3 . . . . . . . . . . Heat Flow Errors 3 | . . . . . 3 . . . . . . . . . . Data Loss (minor) 3 | . . . . . 2 . . . . . 1 . . . . Data Loss (major) 1 | . . . . . 1 . . . . . . . . . . Misfires 1 | . . . . . . . . . . . . . 1 . . Weapon Failures 2 | . . . . . 2 . . . . . . . . . . Overload Shots . | . . . . . . . . . . . . . . . . Overflow Damage 141 | . 13 . 101 . 19 . . . . . 2 . . 6 . Projectiles 21 | . . . 13 . . . . . . . 2 . . 6 . Explosions 120 | . 13 . 88 . 19 . . . . . . . . . . Melee . | . . . . . . . . . . . . . . . . Knockbacks 6 | . . . 3 . . . . . . . 2 . . 1 . Impact . | . . . . . . . . . . . . . . . . Kinetic 5 | . . . 2 . . . . . . . 2 . . 1 . Secondary 1 | . . . 1 . . . . . . . . . . . . Self-Inflicted Damage 159 | . 65 . . . 65 . . 29 . . . . . . . Shots 8 | . 2 . . . 5 . . 1 . . . . . . . Rammed . | . . . . . . . . . . . . . . . . Targets Rammed 1 | . . . 1 . . . . . . . . . . . . Kicked 1 | . . . 1 . . . . . . . . . . . . Crushed . | . . . . . . . . . . . . . . . . Highest Temperature 478 | . 478 99 28 . 225 . 162 221 . . 329 . 40 76 . Average Temperature 114 | . 169 37 10 . 32 . 67 88 . . 147 . 23 28 . Received Heat Transfer 1823 | . 279 54 357 . 436 . 126 45 . . 189 . . 214 123 Effects 8 | . 4 . . . . . . . . . 4 . . . . Shutdowns 1 | . 1 . . . . . . . . . . . . . . Energy Bleed 5 | . 3 . . . . . . . . . 2 . . . . Interference 1 | . . . . . . . . . . . 1 . . . . Short Circuit 1 | . . . . . . . . . . . 1 . . . . Siege Activations . | . . . . . . . . . . . . . . . . Robots Corrupted . | . . . . . . . . . . . . . . . . Combat Hostiles . | . . . . . . . . . . . . . . . . Parts Fried 4 | . . 1 2 . . . . 1 . . . . . . . Impact Corruptions . | . . . . . . . . . . . . . . . . Robots Melted 1 | . . . . . 1 . . . . . . . . . . Combat Hostiles 1 | . . . . . 1 . . . . . . . . . . Parts Melted 7 | . 4 . . . 3 . . . . . . . . . . Heat Transferred 5599 | . 1791 175 1108 . 1690 . 600 50 . . 148 . . 37 . Parts Sabotaged . | . . . . . . . . . . . . . . . . Parts Stolen . | . . . . . . . . . . . . . . . . Parts Stripped . | . . . . . . . . . . . . . . . . Power Chain Reactions 5 | . 2 . 2 . . . . 1 . . . . . . . Alert | -11 -10 -10 -9 -9 -8 -7 -7 -6 -6 -6 -5 -5 -5 -4 -4 ------- Run | Yrd Mat Min Mat Min Mat Fac DSF Fac Low Low Fac Was Fac Fac Upp Peak Influence 392 | . 209 158 392 121 331 81 106 304 . . 232 120 119 222 . Initial 121 | . . 28 61 121 46 81 56 37 . . 65 75 84 58 . Average 120 | . 72 89 164 121 158 81 72 139 . . 104 90 103 91 . Maximum Alert Level 1 | . 1 . 1 . 1 . . 1 . . 1 . . 1 . Low Security (%) 81 | 100 87 100 69 100 65 100 100 69 . . 85 100 100 93 . Level 1 18 | . 12 . 30 . 34 . . 30 . . 14 . . 6 . Level 2 . | . . . . . . . . . . . . . . . . Level 3 . | . . . . . . . . . . . . . . . . Level 4 . | . . . . . . . . . . . . . . . . Level 5 . | . . . . . . . . . . . . . . . . High Security . | . . . . . . . . . . . . . . . . Max Security . | . . . . . . . . . . . . . . . . Squads Dispatched 11 | . 1 . 2 . 2 . 2 2 . . 1 . . 1 . Investigation 4 | . 1 . 1 . 1 . . . . . 1 . . . . Extermination 2 | . . . . . . . . 1 . . . . . 1 . Reinforcement 5 | . . . 1 . 1 . 2 1 . . . . . . . Assault . | . . . . . . . . . . . . . . . . Garrison . | . . . . . . . . . . . . . . . . Intercept . | . . . . . . . . . . . . . . . . Searches Triggered . | . . . . . . . . . . . . . . . . Construction Impeded 2 | . . . . . 1 . . 1 . . . . . . . Haulers Reinforced . | . . . . . . . . . . . . . . . . Active Scanning Responses . | . . . . . . . . . . . . . . . . Cargo Convoy Interrupts . | . . . . . . . . . . . . . . . . Stealth | -11 -10 -10 -9 -9 -8 -7 -7 -6 -6 -6 -5 -5 -5 -4 -4 --------- Run | Yrd Mat Min Mat Min Mat Fac DSF Fac Low Low Fac Was Fac Fac Upp Distress Signals 8 | . 1 . 4 . 2 . . . . . . . . 1 . Communications Jammed 3 | . . . . . . . . . . . . . . 3 . Distress Signals 3 | . . . . . . . . . . . . . . 3 . Times Spotted 176 | . 16 8 32 5 22 . 13 14 . . 11 5 . 23 27 Peak Tracking Total 15 | . 3 3 7 8 6 . 7 5 . . 8 5 . 15 11 Tactical Retreats 20 | . . 1 3 . . . 4 2 . . 1 . . 5 4 Traps | -11 -10 -10 -9 -9 -8 -7 -7 -6 -6 -6 -5 -5 -5 -4 -4 ------- Run | Yrd Mat Min Mat Min Mat Fac DSF Fac Low Low Fac Was Fac Fac Upp Traps Triggered 7 | . 2 . 1 . 1 . . 2 . . 1 . . . . Indirectly . | . . . . . . . . . . . . . . . . Trap Hack Attempts . | . . . . . . . . . . . . . . . . Triggered . | . . . . . . . . . . . . . . . . Disarmed . | . . . . . . . . . . . . . . . . Reprogrammed . | . . . . . . . . . . . . . . . . Reused . | . . . . . . . . . . . . . . . . Traps Extracted . | . . . . . . . . . . . . . . . . Installed . | . . . . . . . . . . . . . . . . Triggered . | . . . . . . . . . . . . . . . . Machines | -11 -10 -10 -9 -9 -8 -7 -7 -6 -6 -6 -5 -5 -5 -4 -4 ---------- Run | Yrd Mat Min Mat Min Mat Fac DSF Fac Low Low Fac Was Fac Fac Upp Machines Disabled 6 | . . . 2 . . . . 3 . . . . 1 . . Max in Single Turn 2 | . . . 1 . . . . 2 . . . . 1 . . Machines Repaired . | . . . . . . . . . . . . . . . . Machines Dismantled . | . . . . . . . . . . . . . . . . Machines Sabotaged . | . . . . . . . . . . . . . . . . Overloaded Fab Kills . | . . . . . . . . . . . . . . . . Hacking | -11 -10 -10 -9 -9 -8 -7 -7 -6 -6 -6 -5 -5 -5 -4 -4 --------- Run | Yrd Mat Min Mat Min Mat Fac DSF Fac Low Low Fac Was Fac Fac Upp Machines Accessed 22 | . 4 . 4 . 5 1 . 3 . . 2 . . 2 1 Terminals 21 | . 4 . 4 . 5 1 . 3 . . 2 . . 2 . Fabricators . | . . . . . . . . . . . . . . . . Repair Stations . | . . . . . . . . . . . . . . . . Recycling Units . | . . . . . . . . . . . . . . . . Scanalyzers . | . . . . . . . . . . . . . . . . Garrison Access . | . . . . . . . . . . . . . . . . Total Hacks 45 | . 8 . 11 . 12 1 . 6 . . 4 . . 2 1 Successful 13 | . 1 . 5 . 2 1 . 2 . . 1 . . . 1 Failed 32 | . 7 . 6 . 10 . . 4 . . 3 . . 2 . Catastrophic 12 | . 1 . 2 . 4 . . 1 . . 2 . . 2 . Database Lockouts . | . . . . . . . . . . . . . . . . Manual 23 | . 8 . 3 . 10 . . . . . 1 . . . 1 Terminals 44 | . 8 . 11 . 12 1 . 6 . . 4 . . 2 . Fabricators . | . . . . . . . . . . . . . . . . Repair Stations . | . . . . . . . . . . . . . . . . Recycling Units . | . . . . . . . . . . . . . . . . Scanalyzers . | . . . . . . . . . . . . . . . . Garrison Access . | . . . . . . . . . . . . . . . . Terminal Hacks 13 | . 1 . 5 . 2 1 . 2 . . 1 . . . 1 Record 4 | . . . . . 1 . . 2 . . 1 . . . . Open Door 1 | . . . . . . . . . . . . . . . 1 Open DSF 1 | . . . . . . 1 . . . . . . . . . Branch Access Points 1 | . . . . . 1 . . . . . . . . . . Terminal Index 1 | . 1 . . . . . . . . . . . . . . Unreport Threat 2 | . . . 2 . . . . . . . . . . . . Hauler Manifests 1 | . . . 1 . . . . . . . . . . . . Registered Prototypes 1 | . . . 1 . . . . . . . . . . . . Zone Layout 1 | . . . 1 . . . . . . . . . . . . Fabricator Hacks . | . . . . . . . . . . . . . . . . Repair Station Hacks . | . . . . . . . . . . . . . . . . Recycling Unit Hacks . | . . . . . . . . . . . . . . . . Scanalyzer . | . . . . . . . . . . . . . . . . Garrison Access Hacks . | . . . . . . . . . . . . . . . . Unauthorized Hacks . | . . . . . . . . . . . . . . . . Terminals . | . . . . . . . . . . . . . . . . Fabricators . | . . . . . . . . . . . . . . . . Repair Stations . | . . . . . . . . . . . . . . . . Recycling Units . | . . . . . . . . . . . . . . . . Scanalyzers . | . . . . . . . . . . . . . . . . Garrison Access . | . . . . . . . . . . . . . . . . Data Cores Recovered . | . . . . . . . . . . . . . . . . Used . | . . . . . . . . . . . . . . . . Hacking Detections 20 | . 4 . 4 . 5 . . 3 . . 2 . . 2 . Full Trace Events 3 | . . . . . 2 . . . . . 1 . . . . Feedback Events . | . . . . . . . . . . . . . . . . Feedback Blocked . | . . . . . . . . . . . . . . . . Robot Schematics Acquired . | . . . . . . . . . . . . . . . . Robots Built . | . . . . . . . . . . . . . . . . Authchips . | . . . . . . . . . . . . . . . . Time . | . . . . . . . . . . . . . . . . Total Robot Build Rating . | . . . . . . . . . . . . . . . . Part Schematics Acquired . | . . . . . . . . . . . . . . . . Parts Built . | . . . . . . . . . . . . . . . . Authchips . | . . . . . . . . . . . . . . . . Time . | . . . . . . . . . . . . . . . . Total Part Build Rating . | . . . . . . . . . . . . . . . . Parts Repaired . | . . . . . . . . . . . . . . . . Time . | . . . . . . . . . . . . . . . . Parts Recycled . | . . . . . . . . . . . . . . . . Recycled Matter . | . . . . . . . . . . . . . . . . Retrieved Matter . | . . . . . . . . . . . . . . . . Retrieved Components . | . . . . . . . . . . . . . . . . Parts Scanalyzed . | . . . . . . . . . . . . . . . . Part Schematics Acquired . | . . . . . . . . . . . . . . . . Parts Damaged . | . . . . . . . . . . . . . . . . Bothacking | -11 -10 -10 -9 -9 -8 -7 -7 -6 -6 -6 -5 -5 -5 -4 -4 ------------ Run | Yrd Mat Min Mat Min Mat Fac DSF Fac Low Low Fac Was Fac Fac Upp Used RIF Installer . | . . . . . . . . . . . . . . . . Robots Hacked . | . . . . . . . . . . . . . . . . Non-combat . | . . . . . . . . . . . . . . . . Combat . | . . . . . . . . . . . . . . . . Robot Hacks Applied . | . . . . . . . . . . . . . . . . Relay Couplers Released . | . . . . . . . . . . . . . . . . Fabnet Peak Effective % . | . . . . . . . . . . . . . . . . Robots Rewired . | . . . . . . . . . . . . . . . . Allies Hacked . | . . . . . . . . . . . . . . . . Hacks Repelled . | . . . . . . . . . . . . . . . . Allies | -11 -10 -10 -9 -9 -8 -7 -7 -6 -6 -6 -5 -5 -5 -4 -4 -------- Run | Yrd Mat Min Mat Min Mat Fac DSF Fac Low Low Fac Was Fac Fac Upp Total Allies 1 | . . 1 . . . . . . . . . . . . . Largest Group 1 | . . 1 . . . . . . . . . . . . . Highest-Rated Group 31 | . . 31 . . . . . . . . . . . . . Highest-Rated Ally 31 | . . 31 . . . . . . . . . . . . . Total Orders . | . . . . . . . . . . . . . . . . Ally Attacks 4 | . . 4 . . . . . . . . . . . . . Total Damage . | . . . . . . . . . . . . . . . . Kills . | . . . . . . . . . . . . . . . . Allies Corrupted . | . . . . . . . . . . . . . . . . Allies Melted . | . . . . . . . . . . . . . . . . Intel | -11 -10 -10 -9 -9 -8 -7 -7 -6 -6 -6 -5 -5 -5 -4 -4 ------- Run | Yrd Mat Min Mat Min Mat Fac DSF Fac Low Low Fac Was Fac Fac Upp Robot Analysis Total . | . . . . . . . . . . . . . . . . Derelict Logs Recovered 6 | . . 2 . 1 . . . . 2 . . . . . 1 Drone Launches . | . . . . . . . . . . . . . . . . Drone Recoveries . | . . . . . . . . . . . . . . . . Exploration | -11 -10 -10 -9 -9 -8 -7 -7 -6 -6 -6 -5 -5 -5 -4 -4 ------------- Run | Yrd Mat Min Mat Min Mat Fac DSF Fac Low Low Fac Was Fac Fac Upp Turns Passed 5242 | 68 622 390 883 304 830 6 185 433 213 5 342 76 64 406 415 Spaces Moved 4132 | 38 287 251 460 254 361 3 132 431 336 9 230 97 99 550 594 Core 271 | 6 5 . . . . . 65 . . . . . . . 195 Treads 398 | 32 139 . . . 157 3 67 . . . . . . . . Legs 1312 | . 143 251 460 254 204 . . . . . . . . . . Wheels . | . . . . . . . . . . . . . . . . Hover 2005 | . . . . . . . . 431 336 9 230 97 99 550 253 Flight 146 | . . . . . . . . . . . . . . . 146 Fastest Speed 50 | 50 120 120 120 120 120 163 50 56 62 62 52 62 62 58 50 Average Speed 94 | 142 152 120 120 120 154 163 108 76 62 62 75 62 62 63 59 Slowest Speed 200 | 160 200 120 120 120 190 163 170 146 62 62 112 62 62 70 70 Overloaded Moves . | . . . . . . . . . . . . . . . . Propulsion Burnouts . | . . . . . . . . . . . . . . . . Robots Hopped . | . . . . . . . . . . . . . . . . Cave-ins Triggered 1 | . . . . . . . 1 . . . . . . . . Exploration Rate (%) 37 | 4 34 45 51 71 37 . 87 15 56 3 9 78 3 23 48 Regions Visited 15 Branch Regions 5 Pre-discovered Areas 1 | . . 1 . . . . . . . . . . . . . Known Exits Taken 5 | . . . 1 . . 1 . . 1 . . . 1 1 . Unknown Exits Taken 7 | 1 1 1 . 1 1 . . 1 . 1 . . . . . Scrap Searched 5 | . . . . 1 . . . . 2 . . . . . 2 Spaces Dug . | . . . . . . . . . . . . . . . . Terrain Destroyed 179 | . 13 . 26 . 86 . . 32 . . 8 . 13 1 . Melee . | . . . . . . . . . . . . . . . . Projectile 9 | . . . . . . . . . . . 8 . . 1 . AOE 170 | . 13 . 26 . 86 . . 32 . . . . 13 . . Terrain Rammed . | . . . . . . . . . . . . . . . . Walls Destroyed . | . . . . . . . . . . . . . . . . Machines Disabled . | . . . . . . . . . . . . . . . . Actions | -11 -10 -10 -9 -9 -8 -7 -7 -6 -6 -6 -5 -5 -5 -4 -4 --------- Run | Yrd Mat Min Mat Min Mat Fac DSF Fac Low Low Fac Was Fac Fac Upp Total 5059 | 50 405 322 681 253 520 4 154 497 341 8 357 114 101 600 652 Wait 441 | . 43 46 121 . 43 . 3 17 . . 74 10 . 35 49 Move 4118 | 37 286 250 459 253 360 2 131 430 335 8 230 96 98 549 594 Hop . | . . . . . . . . . . . . . . . . Pick Up 67 | 5 15 5 11 . 13 . 4 4 . . 4 . 1 3 2 Fast Attach 56 | 5 4 1 5 . 9 . . 13 2 . 9 . . 4 4 Attach 39 | 2 6 . 4 . 6 2 2 3 . . 4 3 2 4 1 Detach 6 | . . . . . . . . . 1 . . 3 . 2 . Swap 25 | . 2 1 6 . 12 . . . . . 4 . . . . Drop 61 | 1 8 6 15 . 13 . 1 3 3 . 9 2 . . . Fire 228 | . 41 13 59 . 64 . 11 14 . . 23 . . 3 . Melee . | . . . . . . . . . . . . . . . . Ram . | . . . . . . . . . . . . . . . . Kick 1 | . . . 1 . . . . . . . . . . . . Crush . | . . . . . . . . . . . . . . . . Escape Stasis 13 | . . . . . . . . 13 . . . . . . . Rewire 4 | . . . . . . . 2 . . . . . . . 2 Trap . | . . . . . . . . . . . . . . . . Miscellaneous . | . . . . . . . . . . . . . . . . Route ------- -11/Scrapyard -10/Materials -10/Mines (discovered 2 exits: *Mat / Sub) -9/Materials -9/Mines (discovered 2 exits: *Mat x2) -8/Materials (discovered 2 exits: *Fac / *Sto) -7/Factory -7/DSF -6/Factory -6/Lower Caves -6/Lower Caves -5/Factory -5/Waste -5/Factory -4/Factory -4/Upper Caves History --------- Turn | Location | Event 6 | -11/Scrapyard | Discovered new exit (range 14) 69 | -11/Scrapyard | Entered Materials 267 | -10/Materials | Discovered new exit (range 15) 326 | -10/Materials | Build established: Mutant 563 | -10/Materials | Lost 3 parts (1n2w) 691 | -10/Materials | Entered Mines 696 | -10/Mines | Escorted by a lone wolf Derelict 717 | -10/Mines | Learned location of Storage (-8) 721 | -10/Mines | Identified exit to Subcaves 745 | -10/Mines | Learned 2 Materials zone layouts 939 | -10/Mines | YI-UF0 nonchalantly dropped a Grenade Launcher on the ground 1035 | -10/Mines | Discovered new exit (range 8) 1048 | -10/Mines | Core integrity fell below 50% 1081 | -10/Mines | Entered Materials 1081 | -9/Materials | Evolved 2 slots: Utility x2 1082 | -9/Materials | Identified exit to Mines 1964 | -9/Materials | Entered Mines 1964 | -9/Mines | Discovered new exit (range 14) 2022 | -9/Mines | Assembled infested the area 2199 | -9/Mines | Build established: Scavenger-Mutant 2221 | -9/Mines | Received a Rocket Launcher from a helpful Derelict 2233 | -9/Mines | Discovered new exit (range 5) 2268 | -9/Mines | Entered Materials 2268 | -8/Materials | Evolved 2 slots: Power x1, Utility x1 2269 | -8/Materials | Identified exit to Storage 2935 | -8/Materials | Core integrity fell below 50% 2962 | -8/Materials | Lost 6 parts (1p2n3u) 3092 | -8/Materials | Discovered new exit (range 4) 3098 | -8/Materials | Entered Factory 3098 | -7/Factory | Evolved 2 slots: Propulsion x1, Weapon x1 3104 | -7/Factory | Identified exit to DSF 3104 | -7/Factory | Entered DSF 3151 | -7/DSF | Additional patrols routed to DSF 3221 | -7/DSF | Crushed by falling debris 3256 | -7/DSF | Core integrity fell below 50% 3273 | -7/DSF | Core integrity fell below 20% 3281 | -7/DSF | Discovered new exit (range 16) 3284 | -7/DSF | Lost 12 parts (2p3n4u3w) 3289 | -7/DSF | Entered Factory 3289 | -6/Factory | Evolved 2 slots: Propulsion x1, Utility x1 3596 | -6/Factory | Build established: Gunner 3659 | -6/Factory | Spotted B-75 Beast 3680 | -6/Factory | Discovered new exit (range 16) 3722 | -6/Factory | Entered Lower Caves 3732 | -6/Lower Caves | Identified exit to Lower Caves 3841 | -6/Lower Caves | Encountered a Warlord checkpoint 3935 | -6/Lower Caves | Entered another Lower Caves area 3939 | -6/Lower Caves | Discovered new exit (range 4) 3940 | -6/Lower Caves | Entered Factory 3940 | -5/Factory | Evolved 2 slots: Propulsion x1, Weapon x1 4282 | -5/Factory | Lost 6 parts (2p1u3w) 4282 | -5/Factory | Sucked down chute 4282 | -5/Factory | Entered Waste 4296 | -5/Waste | Spotted C-40 Crusher 4322 | -5/Waste | Spotted C-40 Crusher 4323 | -5/Waste | Spotted C-40 Crusher 4323 | -5/Waste | Spotted C-40 Crusher 4324 | -5/Waste | Spotted C-40 Crusher 4333 | -5/Waste | Spotted C-40 Crusher 4351 | -5/Waste | Discovered new exit (range 11) 4357 | -5/Waste | Identified exit to Factory 4358 | -5/Waste | Entered Factory 4419 | -5/Factory | Discovered new exit (range 6) 4422 | -5/Factory | Identified exit to Factory 4422 | -5/Factory | Entered another Factory area 4422 | -4/Factory | Evolved 2 slots: Utility x2 4545 | -4/Factory | Build established: Mutant 4696 | -4/Factory | Spotted B-86 Titan 4798 | -4/Factory | Lost 9 parts (2p2n3u2w) 4818 | -4/Factory | Discovered new exit (range 14) 4828 | -4/Factory | Identified exit to Upper Caves 4828 | -4/Factory | Entered Upper Caves 5144 | -4/Upper Caves | Core integrity fell below 50% 5191 | -4/Upper Caves | Lost 4 parts (3n1u) 5204 | -4/Upper Caves | Core integrity fell below 20% 5243 | -4/Upper Caves | Destroyed by S-27 Virus with Autogun Last Messages --------------- 05055_ Searching scrap... 05055_ Found Force Field. 05055_ Found Mak. Flight Unit. 05055_ Found Imp. Medium Armor Plating. 05055_ Found 25 Matter. 05056_ Acquired 25 matter. 05057_ Acquired Mak. Flight Unit. 05059_ Acquired Force Field. 05062_ Connecting with WAR.Sys... >>Open Door Sealed Heavy Doors opened. 05064_ Acquired Unknown Processor. 05064_ Identified Adv. Target Analyzer. 05106_ Force Field destroyed. 05142_ Mak. Flight Unit destroyed. 05145_ Power Amplifier destroyed. 05157_ Gyrokinetic Inverter destroyed. 05201_ Adv. Terrain Scan Processor destroyed. 05218_ S-27 Virus destroyed. 05238_ Connecting with WAR.Sys... Map ----- +----------------------------------------------------+ | ?????????????????????????????????????????????????? | | ?????????????????????????????????????????????????? | | ?????????????????????????????????????????????????? | | ?????????????????????????????????????????????????? | | ?????????????????????????????????????????????????? | | ?????????????????????????????????????????????????? | | ?????????????????????????????????????????????????? | | ?????????????????????????????????????????????????? | | ???????????????????????????????????????########??? | | ??????????????????????????????????????## ##?? | | ??????????????????????????????????????# ##? | | ??????????????????????????????????????# ## | | ???????????????????????????????????????# # | | ?????????????????????????????????????### ## | | ????????????????????????????????????## ####? | | ????????????????????????????????????# ##???? | | ????????????????????????????????????###### ##???? | | ????????????????????????????????????????## #???? | | ??????????????????????????????####????### ###?? | | ????????????????????????????### ##???# #?? | | ???????????????????????????## ##??####### ##? | | ??????????????????????###??# #???????## #? | | ??????????????????????#X##### ##??????## ## | | ??????????????????????# ! # ##???????# # | | ??????????????????????# ### ##???????## | | ??????????????????????# s@### ##???????## | | ??????????????????????##s!#?## ##????#### | | ???????????????????????####??## #????# ## | | ????????????????????????????##### ###??# ##? | | ???????????????????????????## #?## #### ##?? | | ???????????????????????##### ##### ##### | | ???????????????????????# ### | | ???????????????????????# ###?# | | ???????????????????????# #### #??## | | ??????????????????????## ##??# #?## | | ??????????????????????# ##???# #?# | | ??????????????????????## # #??### #### | | ???????????????????????### #?## ##?# | | ????????????????????????# ### #### | | ????????????????????????# ## ## | | ????????????????????????# | | ????????????????????????# #### | | ???????????????????????## # ##?## ## | | ??????????????????????## # #??##### | | ??????????????????????# ## ## ###???## | | ??????????????????????# ### ##### #???# | | ??????????????????????# #####???## #???# | | ?????????????????????## ####???## ##??# | | ?????????????????????# ##??# ##?# | | ?????????????????????# #??### #### | +----------------------------------------------------+ Best States ------------- Heat Dissipation 59 Energy Generation 32 Energy Capacity 365 Matter Stores 300 Matter Capacity 300 Sight Range 20 Robot Scan Range 15 Terrain Scan Range 16 Terrain Scan Density 410 Jamming Range 12 Power Amplification 20 Corruption Containment 16 Armor Coverage 375 Resistance: EM 15 Core Shielding 30 Evasion (%) 59 Targeting Accuracy 6 Target Analysis 8 Recoil Reduction 3 Offensive Hacking 10 Authchip Count 2 Item Schematics ----------------- None Robot Schematics ------------------ None Fabricated ------------ Nothing Alien Tech Used ----------------- None Achievements -------------- None Challenges ------------ None Game ------ Seed RelayRecyclingRigger Manual? 0 Play Time 01:17:07 Cumulative 19.9 hours Start 2024.06.29 @ 10:55:43 End 2024.06.29 @ 14:09:02 Sessions 1 Manual Loads 0 Difficulty Rogue Special Mode None Game No. 19 Rogue 19 Adventurer 0 Explorer 0 Win Type - Total 0 Types 0/0/0/0/0/0/0/0/0 Lore% 20 Gallery% 24 Achievement% 19 Wizard Run 0 Options --------- Layout 1 ASCII 0 Keyboard 0 Movement Arrows Keybinds 0 Fullscreen 2 Font 24/Terminus Map View 50x35 Zoom Use 0% Tactical HUD 1 Map Filters NONE Filters NONE Steam 1 RUN: 785d741d-7b10-4a84-bf45-037baec44c5a